[Event "GER-ch Youth-U12 2024"]
[Site "Willingen"]
[Date "2024.05.19"]
[Round "1"]
[White "Schulz, Robin"]
[Black "Obermair, Hannes"]
[Result "1-0"]
[ECO "B22"]
[WhiteElo "1730"]
[BlackElo "1668"]
[Annotator "NA RC"]
[PlyCount "79"]
[EventDate "2022.06.05"]
[EventType "swiss"]
[EventRounds "9"]
[EventCountry "GER"]
[SourceTitle "playchess.com"]
[Source "ChessBase"]
[SourceQuality "1"]
[TimeControl "40/4500+30:900+30"]

1. e4 {[%emt 0:00:00]} c5 {[%emt 0:00:00]} 2. Nf3 {[%emt 0:00:00]} Nc6 {[%emt 0:00:00]} 3. c3 {[%emt 0:00:00]} Nf6 {[%emt 0:00:00]} 4. e5 {[%emt 0:00:00]} Nd5 {[%emt 0:00:00]} 5. d4 {[%emt 0:00:00]} cxd4 {[%emt 0:00:00]} 6. cxd4 {[%emt 0:00:00]} e6 {[%emt 0:00:00]} 7. Nc3 {[%emt 0:00:00]} Bb4 {[%emt 0:00:00]} 8. Bd2 {[%emt 0:00:00]} Nxc3 {[%emt 0:00:00]} 9. bxc3 {[%emt 0:00:00]} Be7 {[%emt 0:00:00]} 10. Bd3 {[%emt 0:00:00]} d6 {[%emt 0:02:23]} 11. Qe2 {[%emt 0:00:00]} dxe5 {[%emt 0:01:17]} 12. Nxe5 {[%emt 0:00:00]} Nxe5 {[%emt 0:00:58]} 13. Qxe5 {[%emt 0:00:00]} Bf6 {[%emt 0:01:05]} 14. Qe4 {[%emt 0:00:00]} Qd5 {[%emt 0:06:11]} 15. Qxd5 {[%emt 0:00:24]} exd5 {[%emt 0:00:10]} 16. O-O {[%emt 0:00:00]} O-O {[%emt 0:01:18]} 17. h3 {[%emt 0:01:33]} Be6 {[%emt 0:01:50]} 18. g4 {[%emt 0:00:53]} Be7 {[%emt 0:02:14]} 19. f4 {[%emt 0:00:23]} Bd6 {[%emt 0:13:44]} 20. f5 {[%emt 0:07:49]} Bd7 {[%emt 0:02:26]} 21. Rab1 {[%emt 0:10:47]} Bc6 {[%emt 0:04:53]} 22. f6 {[%emt 0:01:01]} g6 {[%emt 0:02:45]} 23. h4 {[%emt 0:01:18]} Kh8 {[%emt 0:06:55]} 24. Bh6 {[%emt 0:01:18]} Rfe8 {[%emt 0:02:31]} 25. h5 {[%emt 0:03:25]} Bf8 {[%emt 0:05:35]} 26. Bf4 {[%emt 0:02:22]} Re6 {[%emt 0:02:06]} 27. hxg6 {[%emt 0:01:08]} fxg6 {[%emt 0:04:12]} 28. f7 {[%emt 0:06:17]} Bg7 {[%emt 0:01:28]} 29. Bb5 {[%emt 0:12:11]} b6 {[%emt 0:06:30]} 30. Bxc6 {[%emt 0:03:36]} Rxc6 {[%emt 0:00:11]} 31. Rbe1 {[%emt 0:00:43]} Rf8 {[%emt 0:04:37]} 32. Re8 {[%emt 0:09:17]} h6 {[%emt 0:02:11]} 33. c4 {[%emt 0:12:24]} Kh7 {[%emt 0:03:32]} 34. cxd5 {[%emt 0:00:57]} Rf6 {[%emt 0:02:37]} 35. Rxf8 {[%emt 0:03:53]} Bxf8 {[%emt 0:01:44]} 36. Be5 {[%emt 0:00:31]} Rxf1+ {[%emt 0:00:13]} 37. Kxf1 {[%emt 0:00:04]} g5 {[%emt 0:01:27]} 38. d6 {[%emt 0:00:11]} Kg6 {[%emt 0:00:37]} 39. d7 {[%emt 0:00:05]} Be7 {[%emt 0:00:15]} 40. d8=Q {[%emt 0:00:12]} 1-0

[Event "GER-ch Youth-U12 2024"]
[Site "Willingen"]
[Date "2024.05.19"]
[Round "1"]
[White "Vinogradov, Ilia"]
[Black "Tarasenko, Nazar"]
[Result "0-1"]
[ECO "B28"]
[WhiteElo "1723"]
[BlackElo "2061"]
[Annotator "RC"]
[PlyCount "110"]
[EventDate "2022.06.05"]
[EventType "swiss"]
[EventRounds "9"]
[EventCountry "GER"]
[SourceTitle "playchess.com"]
[Source "ChessBase"]
[SourceQuality "1"]
[TimeControl "40/4500+30:900+30"]

1. e4 {[%emt 0:00:00]} c5 {[%emt 0:00:00]} 2. Nf3 {[%emt 0:00:00]} a6 {[%emt 0:00:00]} 3. d4 {[%emt 0:00:00]} cxd4 {[%emt 0:00:00]} 4. Nxd4 {[%emt 0:00:00]} Nf6 {[%emt 0:00:00]} 5. Nc3 {[%emt 0:00:00]} e5 {[%emt 0:00:00]} 6. Nf3 {[%emt 0:00:00]} Bb4 {[%emt 0:00:00]} 7. Bc4 {[%emt 0:00:00]} d6 {[%emt 0:00:00]} 8. O-O {[%emt 0:01:41]} Qc7 {[%emt 0:00:00]} 9. Qd3 {[%emt 0:03:33]} Nbd7 {[%emt 0:00:00]} 10. Nd5 {[%emt 0:08:42]} Nxd5 {[%emt 0:00:00]} 11. Bxd5 {[%emt 0:00:58]} O-O {[%emt 0:00:00]} 12. a3 {[%emt 0:10:03]} Bc5 {[%emt 0:00:00]} 13. b4 {[%emt 0:22:05]} Ba7 {[%emt 0:00:00]} 14. Bb3 {[%emt 0:02:41]} h6 {[%emt 0:00:05]} 15. Be3 {[%emt 0:01:11]} Bxe3 {[%emt 0:05:21]} 16. Qxe3 {[%emt 0:00:10]} Nf6 {[%emt 0:00:06]} 17. Rad1 {[%emt 0:06:10]} Be6 {[%emt 0:02:29]} 18. Rfe1 {[%emt 0:00:49]} Rfe8 {[%emt 0:01:43]} 19. h3 {[%emt 0:03:09]} b5 {[%emt 0:00:34]} 20. Rd2 {[%emt 0:02:56]} Rad8 {[%emt 0:02:47]} 21. Rde2 {[%emt 0:04:36]} Nh5 {[%emt 0:01:36]} 22. Rd2 {[%emt 0:02:21]} Nf6 {[%emt 0:01:03]} 23. Rde2 {[%emt 0:00:30]} Kh7 {[%emt 0:00:32]} 24. Rd2 {[%emt 0:02:34]} Qc6 {[%emt 0:00:56]} 25. Rde2 {[%emt 0:00:41]} a5 {[%emt 0:05:33]} 26. Bxe6 {[%emt 0:01:45]} fxe6 {[%emt 0:00:21]} 27. Qd3 {[%emt 0:00:49]} Kg8 {[%emt 0:01:25]} 28. Rd2 {[%emt 0:01:14]} a4 {[%emt 0:00:42]} 29. Kh1 {[%emt 0:01:46]} Rd7 {[%emt 0:00:44]} 30. Kg1 {[%emt 0:01:45]} Red8 {[%emt 0:00:16]} 31. Qe3 {[%emt 0:01:31]} Rc8 {[%emt 0:01:46]} 32. Qd3 {[%emt 0:02:09]} Qc4 {[%emt 0:00:23]} 33. Qe3 {[%emt 0:03:47]} Rc6 {[%emt 0:01:01]} 34. Rde2 {[%emt 0:01:17]} Qc3 {[%emt 0:00:14]} 35. Rc1 {[%emt 0:00:36]} Rdc7 {[%emt 0:00:27]} 36. Ne1 {[%emt 0:00:52]} Qxe3 {[%emt 0:00:32]} 37. Rxe3 {[%emt 0:00:12]} Rc3 {[%emt 0:00:03]} 38. Rd1 {[%emt 0:00:50]} Rxe3 {[%emt 0:00:07]} 39. fxe3 {[%emt 0:00:06]} Nxe4 {[%emt 0:00:04]} 40. Rd3 {[%emt 0:00:45]} Kf7 {[%emt 0:00:57]} 41. g4 {[%emt 0:15:50]} Ke7 {[%emt 0:15:52]} 42. Kg2 {[%emt 0:00:00]} d5 {[%emt 0:00:00]} 43. Kf1 {[%emt 0:00:00]} Kd6 {[%emt 0:00:00]} 44. Kg2 {[%emt 0:00:00]} Nc3 {[%emt 0:00:00]} 45. Kf2 {[%emt 0:00:00]} e4 {[%emt 0:00:00]} 46. Rd2 {[%emt 0:00:00]} Nb1 {[%emt 0:00:00]} 47. Rd1 {[%emt 0:00:00]} Nxa3 {[%emt 0:00:00]} 48. Rc1 {[%emt 0:00:00]} Rc3 {[%emt 0:00:00]} 49. h4 {[%emt 0:00:00]} g5 {[%emt 0:00:00]} 50. hxg5 {[%emt 0:00:00]} hxg5 {[%emt 0:00:00]} 51. Ke2 {[%emt 0:00:00]} Nc4 {[%emt 0:00:00]} 52. Ng2 {[%emt 0:00:00]} Ke5 {[%emt 0:00:00]} 53. Kf2 {[%emt 0:00:00]} a3 {[%emt 0:00:00]} 54. Ke2 {[%emt 0:00:00]} a2 {[%emt 0:00:00]} 55. Kf2 {[%emt 0:00:00]} Rxc2+ {[%emt 0:00:00]} 0-1

[Event "GER-ch Youth-U12 2024"]
[Site "Willingen"]
[Date "2024.05.19"]
[Round "1"]
[White "Sun, Christopher"]
[Black "Bundan, Edward"]
[Result "0-1"]
[ECO "B40"]
[WhiteElo "1714"]
[BlackElo "1897"]
[Annotator "NA RC"]
[PlyCount "118"]
[EventDate "2022.06.05"]
[EventType "swiss"]
[EventRounds "9"]
[EventCountry "GER"]
[SourceTitle "playchess.com"]
[Source "ChessBase"]
[SourceQuality "1"]
[TimeControl "40/4500+30:900+30"]

1. e4 {[%emt 0:00:00]} c5 {[%emt 0:00:00]} 2. Nf3 {[%emt 0:00:00]} Nc6 {[%emt 0:00:00]} 3. b3 {[%emt 0:00:00]} e6 {[%emt 0:00:00]} 4. Bb2 {[%emt 0:00:00]} Nf6 {[%emt 0:00:00]} 5. Nc3 {[%emt 0:00:00]} d5 {[%emt 0:00:00]} 6. exd5 {[%emt 0:00:00]} exd5 {[%emt 0:00:22]} 7. d4 {[%emt 0:00:00]} cxd4 {[%emt 0:01:11]} 8. Nxd4 {[%emt 0:00:00]} Be7 {[%emt 0:08:55]} 9. Be2 {[%emt 0:00:00]} O-O {[%emt 0:00:11]} 10. O-O {[%emt 0:00:00]} a6 {[%emt 0:05:07]} 11. Bf3 {[%emt 0:00:00]} Ne5 {[%emt 0:04:46]} 12. Re1 {[%emt 0:00:43]} Nxf3+ {[%emt 0:00:31]} 13. Nxf3 {[%emt 0:01:35]} Bg4 {[%emt 0:01:53]} 14. Qd4 {[%emt 0:12:14]} Bxf3 {[%emt 0:01:35]} 15. gxf3 {[%emt 0:00:09]} Rc8 {[%emt 0:11:13]} 16. b4 {[%emt 0:14:49]} Rc4 {[%emt 0:01:56]} 17. Qe5 {[%emt 0:02:46]} Bd6 {[%emt 0:01:46]} 18. Qg5 {[%emt 0:01:29]} h6 {[%emt 0:00:26]} 19. Qd2 {[%emt 0:02:16]} Bxb4 {[%emt 0:01:06]} 20. a3 {[%emt 0:01:02]} Bxc3 {[%emt 0:03:13]} 21. Bxc3 {[%emt 0:00:45]} d4 {[%emt 0:01:03]} 22. Bb4 {[%emt 0:00:39]} Re8 {[%emt 0:00:14]} 23. Rxe8+ {[%emt 0:00:56]} Qxe8 {[%emt 0:00:18]} 24. Re1 {[%emt 0:03:02]} Qc6 {[%emt 0:01:03]} 25. Kg2 {[%emt 0:03:46]} Nd5 {[%emt 0:01:11]} 26. Re4 {[%emt 0:03:42]} Nxb4 {[%emt 0:02:25]} 27. axb4 {[%emt 0:00:14]} f5 {[%emt 0:04:44]} 28. Rxd4 {[%emt 0:01:58]} Rxc2 {[%emt 0:02:17]} 29. Qf4 {[%emt 0:01:35]} Qg6+ {[%emt 0:00:34]} 30. Kf1 {[%emt 0:00:28]} Ra2 {[%emt 0:03:29]} 31. Rd1 {[%emt 0:01:27]} Qe6 {[%emt 0:02:19]} 32. Re1 {[%emt 0:01:13]} Qf7 {[%emt 0:01:18]} 33. Rc1 {[%emt 0:01:29]} Kh7 {[%emt 0:04:05]} 34. Qe5 {[%emt 0:03:48]} Rd2 {[%emt 0:04:17]} 35. Rc7 {[%emt 0:02:13]} Rd7 {[%emt 0:00:25]} 36. Rc5 {[%emt 0:02:38]} g6 {[%emt 0:02:09]} 37. Kg2 {[%emt 0:02:26]} Qg7 {[%emt 0:00:51]} 38. Qg3 {[%emt 0:09:17]} Rf7 {[%emt 0:00:57]} 39. Qd6 {[%emt 0:04:45]} g5 {[%emt 0:01:03]} 40. h3 {[%emt 0:03:29]} h5 {[%emt 0:00:46]} 41. Qd3 {[%emt 0:20:05]} Qg6 {[%emt 0:16:33]} 42. Qc3 {[%emt 0:01:51]} g4 {[%emt 0:01:00]} 43. fxg4 {[%emt 0:00:53]} hxg4 {[%emt 0:00:24]} 44. Qg3 {[%emt 0:02:07]} gxh3+ {[%emt 0:00:54]} 45. Kxh3 {[%emt 0:00:14]} Qxg3+ {[%emt 0:01:02]} 46. Kxg3 {[%emt 0:00:12]} Kg6 {[%emt 0:00:52]} 47. b5 {[%emt 0:00:33]} axb5 {[%emt 0:01:05]} 48. Rxb5 {[%emt 0:00:15]} Kf6 {[%emt 0:00:27]} 49. Kf4 {[%emt 0:00:00]} Ke6 {[%emt 0:00:00]} 50. Re5+ {[%emt 0:00:00]} Kd6 {[%emt 0:00:00]} 51. Rxf5 {[%emt 0:00:00]} Rxf5+ {[%emt 0:00:00]} 52. Kxf5 {[%emt 0:00:00]} Kd5 {[%emt 0:00:00]} 53. Kg5 {[%emt 0:00:00]} b5 {[%emt 0:00:00]} 54. f4 {[%emt 0:00:00]} b4 {[%emt 0:00:00]} 55. f5 {[%emt 0:00:00]} b3 {[%emt 0:00:00]} 56. f6 {[%emt 0:00:00]} Ke6 {[%emt 0:00:00]} 57. Kg6 {[%emt 0:00:00]} b2 {[%emt 0:00:00]} 58. f7 {[%emt 0:00:00]} b1=Q+ {[%emt 0:00:00]} 59. Kg7 {[%emt 0:00:00]} Qb7 {[%emt 0:00:00]} 0-1

[Event "GER-ch Youth-U12 2024"]
[Site "Willingen"]
[Date "2024.05.19"]
[Round "1"]
[White "Hellriegel, Hannes"]
[Black "Fass, Ben"]
[Result "1-0"]
[ECO "C50"]
[WhiteElo "1701"]
[BlackElo "1027"]
[Annotator "NA RC"]
[PlyCount "74"]
[EventDate "2022.06.05"]
[EventType "swiss"]
[EventRounds "9"]
[EventCountry "GER"]
[SourceTitle "playchess.com"]
[Source "ChessBase"]
[SourceQuality "1"]
[TimeControl "40/4500+30:900+30"]

1. e4 {[%emt 0:00:00]} e5 {[%emt 0:00:00]} 2. Nf3 {[%emt 0:00:00]} Nc6 {[%emt 0:00:00]} 3. Bc4 {[%emt 0:00:00]} Bc5 {[%emt 0:00:00]} 4. Nc3 {[%emt 0:00:00]} Nf6 {[%emt 0:00:00]} 5. d3 {[%emt 0:00:00]} d6 {[%emt 0:00:00]} 6. Na4 {[%emt 0:00:00]} Bd4 {[%emt 0:00:00]} 7. c3 {[%emt 0:00:00]} Bb6 {[%emt 0:00:00]} 8. b4 {[%emt 0:00:00]} Ne7 {[%emt 0:00:00]} 9. Qb3 {[%emt 0:00:00]} d5 {[%emt 0:00:00]} 10. exd5 {[%emt 0:00:00]} Nexd5 {[%emt 0:00:00]} 11. Bxd5 {[%emt 0:00:00]} Qxd5 {[%emt 0:00:00]} 12. c4 {[%emt 0:02:17]} Qd7 {[%emt 0:00:00]} 13. c5 {[%emt 0:00:00]} Qg4 {[%emt 0:03:34]} 14. O-O {[%emt 0:05:53]} Be6 {[%emt 0:00:00]} 15. Qb2 {[%emt 0:04:09]} Bd7 {[%emt 0:00:00]} 16. Nxe5 {[%emt 0:06:33]} Qe6 {[%emt 0:00:00]} 17. Nxd7 {[%emt 0:03:46]} Qxd7 {[%emt 0:00:00]} 18. Qb3 {[%emt 0:01:18]} Qd5 {[%emt 0:00:00]} 19. Qxd5 {[%emt 0:03:13]} Nxd5 {[%emt 0:00:00]} 20. Bd2 {[%emt 0:02:29]} O-O {[%emt 0:00:00]} 21. a3 {[%emt 0:03:51]} Bxc5 {[%emt 0:00:00]} 22. Nxc5 {[%emt 0:01:19]} b6 {[%emt 0:00:00]} 23. Ne4 {[%emt 0:01:14]} Rad8 {[%emt 0:01:29]} 24. Rac1 {[%emt 0:02:32]} Rd7 {[%emt 0:00:45]} 25. Rc4 {[%emt 0:04:01]} Nf4 {[%emt 0:01:31]} 26. Bxf4 {[%emt 0:00:47]} Rxd3 {[%emt 0:00:32]} 27. Rxc7 {[%emt 0:00:39]} Rd4 {[%emt 0:00:16]} 28. Bd6 {[%emt 0:00:45]} Rxe4 {[%emt 0:00:33]} 29. Bxf8 {[%emt 0:00:04]} Kxf8 {[%emt 0:00:16]} 30. Rxa7 {[%emt 0:00:04]} Rd4 {[%emt 0:00:28]} 31. Ra6 {[%emt 0:00:14]} Rd6 {[%emt 0:00:08]} 32. a4 {[%emt 0:00:07]} Rd4 {[%emt 0:00:04]} 33. Rxb6 {[%emt 0:00:05]} g6 {[%emt 0:00:10]} 34. a5 {[%emt 0:00:07]} Rd7 {[%emt 0:00:12]} 35. a6 {[%emt 0:00:09]} Ke7 {[%emt 0:00:12]} 36. Rb7 {[%emt 0:00:06]} Kd8 {[%emt 0:00:12]} 37. Rxd7+ {[%emt 0:00:06]} Kxd7 {[%emt 0:00:16]} 1-0

[Event "GER-ch Youth-U12 2024"]
[Site "Willingen"]
[Date "2024.05.19"]
[Round "1"]
[White "Leonhardt, Max"]
[Black "Zhang, Yibo"]
[Result "0-1"]
[ECO "A08"]
[WhiteElo "1691"]
[BlackElo "1988"]
[Annotator "RC"]
[PlyCount "82"]
[EventDate "2022.06.05"]
[EventType "swiss"]
[EventRounds "9"]
[EventCountry "GER"]
[SourceTitle "playchess.com"]
[Source "ChessBase"]
[SourceQuality "1"]
[TimeControl "40/4500+30:900+30"]

1. Nf3 {[%emt 0:00:00]} d5 {[%emt 0:00:00]} 2. g3 {[%emt 0:00:00]} c5 {[%emt 0:00:00]} 3. Bg2 {[%emt 0:00:00]} Nf6 {[%emt 0:00:00]} 4. O-O {[%emt 0:00:00]} Nc6 {[%emt 0:00:00]} 5. d3 {[%emt 0:00:00]} e6 {[%emt 0:10:28]} 6. Bf4 {[%emt 0:00:00]} g6 {[%emt 0:07:47]} 7. Nc3 {[%emt 0:00:00]} a6 {[%emt 0:00:13]} 8. e4 {[%emt 0:00:00]} d4 {[%emt 0:01:28]} 9. Ne2 {[%emt 0:00:10]} Bg7 {[%emt 0:02:16]} 10. c3 {[%emt 0:00:58]} O-O {[%emt 0:05:10]} 11. Ne5 {[%emt 0:03:34]} Nd7 {[%emt 0:08:29]} 12. Nxc6 {[%emt 0:01:24]} bxc6 {[%emt 0:00:21]} 13. Qa4 {[%emt 0:04:33]} Qb6 {[%emt 0:02:52]} 14. Rab1 {[%emt 0:05:08]} e5 {[%emt 0:03:41]} 15. Bd2 {[%emt 0:01:19]} Qb5 {[%emt 0:02:41]} 16. Qc2 {[%emt 0:01:24]} c4 {[%emt 0:18:55]} 17. a4 {[%emt 0:03:30]} cxd3 {[%emt 0:00:54]} 18. axb5 {[%emt 0:00:08]} dxc2 {[%emt 0:00:05]} 19. Ra1 {[%emt 0:01:52]} dxc3 {[%emt 0:06:22]} 20. Bxc3 {[%emt 0:02:12]} cxb5 {[%emt 0:00:29]} 21. Rac1 {[%emt 0:00:59]} Bb7 {[%emt 0:01:41]} 22. Rxc2 {[%emt 0:00:16]} Rfc8 {[%emt 0:02:34]} 23. Rd2 {[%emt 0:02:24]} Nc5 {[%emt 0:01:16]} 24. f3 {[%emt 0:00:30]} a5 {[%emt 0:01:05]} 25. b4 {[%emt 0:02:55]} Na4 {[%emt 0:00:56]} 26. Rd7 {[%emt 0:00:54]} Bc6 {[%emt 0:00:17]} 27. Rd3 {[%emt 0:00:34]} Nxc3 {[%emt 0:00:35]} 28. Rxc3 {[%emt 0:00:41]} axb4 {[%emt 0:00:17]} 29. Rc2 {[%emt 0:01:51]} Bd7 {[%emt 0:01:11]} 30. Rfc1 {[%emt 0:01:12]} Rxc2 {[%emt 0:01:00]} 31. Rxc2 {[%emt 0:00:12]} b3 {[%emt 0:00:13]} 32. Rb2 {[%emt 0:00:54]} Ra2 {[%emt 0:00:05]} 33. Rxb3 {[%emt 0:00:33]} Rxe2 {[%emt 0:00:11]} 34. Rd3 {[%emt 0:00:14]} Be6 {[%emt 0:00:21]} 35. Bf1 {[%emt 0:00:43]} Rb2 {[%emt 0:01:01]} 36. Rd8+ {[%emt 0:00:30]} Bf8 {[%emt 0:00:05]} 37. Rb8 {[%emt 0:00:48]} b4 {[%emt 0:00:15]} 38. f4 {[%emt 0:00:32]} exf4 {[%emt 0:00:34]} 39. gxf4 {[%emt 0:00:16]} Kg7 {[%emt 0:00:03]} 40. Bd3 {[%emt 0:00:35]} Bh3 {[%emt 0:00:40]} 41. f5 {[%emt 0:15:52]} Bc5+ {[%emt 0:15:10]} 0-1

[Event "GER-ch Youth-U12 2024"]
[Site "Willingen"]
[Date "2024.05.19"]
[Round "1"]
[White "Balashvili, Amiran"]
[Black "Marynychenko, Yehor"]
[Result "0-1"]
[ECO "B45"]
[WhiteElo "1682"]
[BlackElo "1896"]
[Annotator "NA RC"]
[PlyCount "96"]
[EventDate "2022.06.05"]
[EventType "swiss"]
[EventRounds "9"]
[EventCountry "GER"]
[SourceTitle "playchess.com"]
[Source "ChessBase"]
[SourceQuality "1"]
[TimeControl "40/4500+30:900+30"]

1. e4 {[%emt 0:00:00]} c5 {[%emt 0:00:00]} 2. Nf3 {[%emt 0:00:00]} Nc6 {[%emt 0:00:00]} 3. d4 {[%emt 0:00:00]} cxd4 {[%emt 0:00:00]} 4. Nxd4 {[%emt 0:00:00]} Nf6 {[%emt 0:00:00]} 5. Nc3 {[%emt 0:00:00]} e6 {[%emt 0:00:00]} 6. a3 {[%emt 0:00:00]} Be7 {[%emt 0:00:00]} 7. Be2 {[%emt 0:00:00]} O-O {[%emt 0:00:00]} 8. O-O {[%emt 0:00:00]} d5 {[%emt 0:00:00]} 9. exd5 {[%emt 0:00:00]} Nxd5 {[%emt 0:00:00]} 10. Nxd5 {[%emt 0:00:00]} exd5 {[%emt 0:00:00]} 11. Bf3 {[%emt 0:00:00]} Ne5 {[%emt 0:00:00]} 12. b3 {[%emt 0:00:00]} Bf6 {[%emt 0:01:49]} 13. Bb2 {[%emt 0:00:00]} a6 {[%emt 0:07:36]} 14. Re1 {[%emt 0:02:37]} Re8 {[%emt 0:03:18]} 15. Rb1 {[%emt 0:10:22]} h6 {[%emt 0:05:50]} 16. h3 {[%emt 0:04:04]} Qd6 {[%emt 0:05:33]} 17. c3 {[%emt 0:15:01]} Bd7 {[%emt 0:02:24]} 18. Qc2 {[%emt 0:06:41]} Nxf3+ {[%emt 0:00:58]} 19. Nxf3 {[%emt 0:00:03]} Qf4 {[%emt 0:03:21]} 20. Qd1 {[%emt 0:03:02]} Bf5 {[%emt 0:02:48]} 21. Rc1 {[%emt 0:01:57]} Rxe1+ {[%emt 0:01:17]} 22. Nxe1 {[%emt 0:00:22]} Re8 {[%emt 0:00:38]} 23. Nd3 {[%emt 0:02:36]} Qg5 {[%emt 0:02:23]} 24. Kf1 {[%emt 0:06:16]} Be4 {[%emt 0:01:02]} 25. f3 {[%emt 0:00:05]} Bg6 {[%emt 0:00:12]} 26. Nf2 {[%emt 0:03:34]} Qe3 {[%emt 0:01:20]} 27. g3 {[%emt 0:03:50]} h5 {[%emt 0:04:28]} 28. h4 {[%emt 0:02:51]} Qe5 {[%emt 0:05:51]} 29. Kg2 {[%emt 0:03:32]} Bd8 {[%emt 0:02:38]} 30. Qd2 {[%emt 0:05:23]} Bc7 {[%emt 0:00:29]} 31. f4 {[%emt 0:00:02]} Qe2 {[%emt 0:00:35]} 32. Rd1 {[%emt 0:01:22]} Bb6 {[%emt 0:00:27]} 33. Bc1 {[%emt 0:13:30]} Be4+ {[%emt 0:00:27]} 34. Kg1 {[%emt 0:01:13]} Bxf2+ {[%emt 0:00:11]} 35. Kh2 {[%emt 0:00:05]} Qf3 {[%emt 0:00:32]} 36. Rg1 {[%emt 0:01:41]} Bxg1+ {[%emt 0:00:22]} 37. Kxg1 {[%emt 0:00:03]} Qh1+ {[%emt 0:00:11]} 38. Kf2 {[%emt 0:00:02]} Qg2+ {[%emt 0:00:08]} 39. Ke3 {[%emt 0:00:06]} Qg1+ {[%emt 0:00:13]} 40. Qf2 {[%emt 0:00:11]} Bh1+ {[%emt 0:00:17]} 41. Kd3 {[%emt 0:15:14]} Qxf2 {[%emt 0:15:06]} 42. c4 {[%emt 0:00:12]} d4 {[%emt 0:00:10]} 43. c5 {[%emt 0:00:09]} Be4+ {[%emt 0:00:22]} 44. Kc4 {[%emt 0:00:04]} Qc2+ {[%emt 0:00:06]} 45. Kb4 {[%emt 0:00:13]} a5+ {[%emt 0:00:05]} 46. Kb5 {[%emt 0:00:11]} Qxb3+ {[%emt 0:00:07]} 47. Kxa5 {[%emt 0:00:04]} Bc6 {[%emt 0:00:06]} 48. a4 {[%emt 0:00:13]} Ra8# {[%emt 0:00:06]} 0-1

[Event "GER-ch Youth-U12 2024"]
[Site "Willingen"]
[Date "2024.05.19"]
[Round "1"]
[White "Heitmann, Erik"]
[Black "Hoppe, Arthur"]
[Result "1-0"]
[ECO "D85"]
[WhiteElo "1644"]
[BlackElo "1859"]
[Annotator "NA RC"]
[PlyCount "129"]
[EventDate "2022.06.05"]
[EventType "swiss"]
[EventRounds "9"]
[EventCountry "GER"]
[SourceTitle "playchess.com"]
[Source "ChessBase"]
[SourceQuality "1"]
[TimeControl "40/4500+30:900+30"]

1. d4 {[%emt 0:00:00]} Nf6 {[%emt 0:00:00]} 2. c4 {[%emt 0:00:00]} g6 {[%emt 0:00:00]} 3. Nc3 {[%emt 0:00:00]} d5 {[%emt 0:00:00]} 4. cxd5 {[%emt 0:00:00]} Nxd5 {[%emt 0:00:00]} 5. e4 {[%emt 0:00:00]} Nxc3 {[%emt 0:00:00]} 6. bxc3 {[%emt 0:00:00]} c5 {[%emt 0:00:00]} 7. dxc5 {[%emt 0:00:00]} Qc7 {[%emt 0:00:00]} 8. Bc4 {[%emt 0:03:56]} Bg7 {[%emt 0:00:49]} 9. Qf3 {[%emt 0:01:45]} O-O {[%emt 0:00:09]} 10. Ba3 {[%emt 0:01:48]} Nd7 {[%emt 0:00:07]} 11. Qe3 {[%emt 0:09:02]} Ne5 {[%emt 0:02:58]} 12. Bb3 {[%emt 0:02:38]} Ng4 {[%emt 0:00:16]} 13. Qd2 {[%emt 0:07:56]} Qe5 {[%emt 0:02:10]} 14. Ne2 {[%emt 0:00:50]} Be6 {[%emt 0:06:25]} 15. f3 {[%emt 0:04:19]} Bh6 {[%emt 0:04:11]} 16. Qd4 {[%emt 0:04:28]} Qxd4 {[%emt 0:00:55]} 17. cxd4 {[%emt 0:01:04]} Ne3 {[%emt 0:00:10]} 18. d5 {[%emt 0:01:38]} Nxg2+ {[%emt 0:00:43]} 19. Kf2 {[%emt 0:00:26]} Bh3 {[%emt 0:00:02]} 20. Kg3 {[%emt 0:00:50]} Nh4 {[%emt 0:01:47]} 21. Kxh3 {[%emt 0:03:17]} Nxf3 {[%emt 0:00:06]} 22. Kg2 {[%emt 0:01:34]} Nd2 {[%emt 0:00:11]} 23. Bc1 {[%emt 0:01:11]} Rfc8 {[%emt 0:02:22]} 24. Bxd2 {[%emt 0:01:48]} Bxd2 {[%emt 0:00:08]} 25. Rad1 {[%emt 0:01:11]} Bb4 {[%emt 0:00:14]} 26. c6 {[%emt 0:01:26]} bxc6 {[%emt 0:00:16]} 27. dxc6 {[%emt 0:00:05]} Rxc6 {[%emt 0:00:06]} 28. Bd5 {[%emt 0:00:04]} Rc2 {[%emt 0:00:06]} 29. Bxa8 {[%emt 0:00:37]} Rxe2+ {[%emt 0:00:03]} 30. Kf3 {[%emt 0:00:09]} Rxa2 {[%emt 0:01:21]} 31. Ra1 {[%emt 0:01:03]} Rc2 {[%emt 0:00:00]} 32. Rxa7 {[%emt 0:01:34]} Bc5 {[%emt 0:00:00]} 33. Raa1 {[%emt 0:01:13]} Rf2+ {[%emt 0:00:00]} 34. Kg3 {[%emt 0:00:29]} Rc2 {[%emt 0:00:00]} 35. Rac1 {[%emt 0:00:16]} Bd6+ {[%emt 0:00:00]} 36. Kf3 {[%emt 0:00:39]} Rxh2 {[%emt 0:00:02]} 37. Rxh2 {[%emt 0:00:06]} Bxh2 {[%emt 0:00:04]} 38. Rc8+ {[%emt 0:03:01]} Kg7 {[%emt 0:03:38]} 39. Re8 {[%emt 0:00:17]} Kf6 {[%emt 0:00:09]} 40. Bd5 {[%emt 0:02:19]} Bd6 {[%emt 0:00:07]} 41. Ra8 {[%emt 0:15:35]} h5 {[%emt 0:16:04]} 42. Ra6 {[%emt 0:02:06]} Kg7 {[%emt 0:00:26]} 43. Ke3 {[%emt 0:00:54]} h4 {[%emt 0:00:22]} 44. Kd4 {[%emt 0:00:52]} Bg3 {[%emt 0:02:21]} 45. e5 {[%emt 0:02:14]} Bf2+ {[%emt 0:12:42]} 46. Kd3 {[%emt 0:01:09]} Bg3 {[%emt 0:00:10]} 47. Ke4 {[%emt 0:00:10]} f5+ {[%emt 0:04:06]} 48. Kd4 {[%emt 0:01:47]} Bf2+ {[%emt 0:00:57]} 49. Kd3 {[%emt 0:00:11]} Bg3 {[%emt 0:00:05]} 50. Re6 {[%emt 0:00:51]} g5 {[%emt 0:00:28]} 51. Rxe7+ {[%emt 0:00:20]} Kg6 {[%emt 0:00:03]} 52. Bf7+ {[%emt 0:02:55]} Kh6 {[%emt 0:01:44]} 53. Be8 {[%emt 0:07:38]} Bf4 {[%emt 0:00:51]} 54. e6 {[%emt 0:00:55]} h3 {[%emt 0:01:42]} 55. Rb7 {[%emt 0:01:21]} g4 {[%emt 0:00:36]} 56. Bc6 {[%emt 0:01:14]} Bd6 {[%emt 0:00:19]} 57. e7 {[%emt 0:02:04]} Bxe7 {[%emt 0:00:04]} 58. Rxe7 {[%emt 0:00:05]} g3 {[%emt 0:00:05]} 59. Ke2 {[%emt 0:01:27]} f4 {[%emt 0:00:09]} 60. Bh1 {[%emt 0:01:45]} g2 {[%emt 0:00:29]} 61. Bxg2 {[%emt 0:00:51]} hxg2 {[%emt 0:00:06]} 62. Kf2 {[%emt 0:00:05]} f3 {[%emt 0:00:03]} 63. Rf7 {[%emt 0:00:23]} Kg5 {[%emt 0:00:04]} 64. Rxf3 {[%emt 0:00:08]} Kg4 {[%emt 0:00:02]} 65. Kxg2 {[%emt 0:00:15]} 1-0